Portfolio,Expense Area,Cost Centre,Expense Type,Account Code,Amount,Supplier Name,SupplierId,Pay Date,Transaction No.
Resources & Corporate Governance ,Street Cleansing,WSC00,Personal Protective Clothing,0340,610.39,Arco Limited,100015,14/02/2013,10179615
Resources & Corporate Governance ,Street Cleansing,WSC00,Vehicle Repair and Maintenance,0200,477.00,Autolec Services (Rugby),100021,07/02/2013,10179953
Resources & Corporate Governance,Handy man,WHM00,External Contractor & Operator,0742,580.00,AWM Electrical Contractors Ltd,100051,14/02/2013,10179991
Housing Revenue Account ,Unplanned Maintenance and Repair,UMR00,R&M External Contractors,0100,1222.48,AWM Electrical Contractors Ltd,100051,07/02/2013,10180045
Housing Revenue Account ,Unplanned Maintenance and Repair,UMR00,R&M External Contractors,0100,2663.41,AWM Electrical Contractors Ltd,100051,21/02/2013,10180534
Housing Revenue Account ,Unplanned Maintenance and Repair,UMR00,R&M External Contractors,0100,1723.84,AWM Electrical Contractors Ltd,100051,28/02/2013,10180738
Housing Revenue Account ,Unplanned Maintenance and Repair,UMR00,R&M External Contractors,0100,1672.42,AWM Electrical Contractors Ltd,100051,28/02/2013,10180875
Housing Revenue Account ,Unplanned Maintenance and Repair,UMR00,R&M External Contractors,0100,1603.95,Andy Woods Landscapes,100078,28/02/2013,10180735
Resources & Corporate Governance ,IT Procurement,CMP00,IT Capital Expenditure,5025,1400.00,Albany Software Ltd,100084,28/02/2013,10179898
Resources & Corporate Governance ,IT Procurement,CMP00,IT Capital Expenditure,5025,2800.00,Albany Software Ltd,100084,28/02/2013,10179899
Capital Program ,Kitchen Modifications,HIK10,Capital Contract Payments,5000,6893.58,A C E Carpentry & Joinery Contractors Ltd,100085,07/02/2013,10179551
Housing Revenue Account ,Unplanned Maintenance and Repair,UMR00,R&M External Contractors,0100,392.46,A C E Carpentry & Joinery Contractors Ltd,100085,07/02/2013,10179793
Capital Program ,Kitchen Modifications,HIK10,Capital Contract Payments,5000,5101.98,A C E Carpentry & Joinery Contractors Ltd,100085,07/02/2013,10179793
Capital Program ,Kitchen Modifications,HIK10,Capital Contract Payments,5000,11489.30,A C E Carpentry & Joinery Contractors Ltd,100085,14/02/2013,10180244
Housing Revenue Account ,Unplanned Maintenance and Repair,UMR00,R&M External Contractors,0100,325.00,A C E Carpentry & Joinery Contractors Ltd,100085,14/02/2013,10180324
Capital Program ,Kitchen Modifications,HIK10,Capital Contract Payments,5000,1851.06,A C E Carpentry & Joinery Contractors Ltd,100085,14/02/2013,10180324
Economy Development & Culture,Ken Marriott Leisure Centre,KML00,Other Miscellaneous Expenses,0444,10999.15,DC Leisure Rugby,100140,28/02/2013,10180787
Economy Development & Culture,Ken Marriott Leisure Centre,KML00,Other Miscellaneous Expenses,0444,4698.80,DC Leisure Rugby,100140,28/02/2013,10180788
Sustainable Inclusive Communities,CL Grants,CGS00,Grants To Voluntary Organisations,0720,8330.87,Birdingbury Parish Council,100145,21/02/2013,10180563
Economy Development & Culture,Car Parks General,CPK01,Maintenance of Equipment,0301,528.17,Cale Briparc Ltd,100158,28/02/2013,10180514
Resources & Corporate Governance ,Council Tax and NNDR Collection,CTX01,External Contractor & Operator,0742,67.00,Bristow & Sutor,100159,21/02/2013,10180263
Housing Revenue Account ,Control Centre (HRA),CCE00,Maintenance of Equipment,0301,4074.75,British Telecommunications Plc,100161,21/02/2013,10180553
Housing Revenue Account ,Multi-Storey Flats,MSF00,Telephone Expenses,0371,79.00,British Telecommunications Plc,100161,21/02/2013,10180553
Sustainable Inclusive Communities,Sewage Disposal Plant,SDP00,Telephone Expenses,0371,55.30,British Telecommunications Plc,100161,21/02/2013,10180553
Sustainable Inclusive Communities,Woodside Park,TVR00,Telephone Expenses,0371,116.98,British Telecommunications Plc,100161,21/02/2013,10180553
Housing Revenue Account ,Control Centre (HRA),CCE00,Telephone Expenses,0371,443.28,British Telecommunications Plc,100161,28/02/2013,10180781
Capital Program ,Crematorium Project,BUR04,Capital Contract Payments,5000,5204.75,Burrow Hill Ltd,100167,07/02/2013,10179488
Capital Program ,Woodland Creation Project,WCP00,Capital Contract Payments,5000,6954.75,Burrow Hill Ltd,100167,28/02/2013,10180511
Housing Revenue Account ,Unplanned Maintenance and Repair,UMR00,R&M External Contractors,0100,850.38,Bowen Builders,100241,07/02/2013,10180039
Housing Revenue Account ,Unplanned Maintenance and Repair,UMR00,R&M External Contractors,0100,924.72,Bowen Builders,100241,07/02/2013,10180042
Capital Program ,Disabled Adaptations,HCR01,Capital Contract Payments,5000,17.61,Bowen Builders,100241,07/02/2013,10180042
Resources & Corporate Governance,Corporate Property R&M,CPA01,R&M External Contractors,0100,2967.44,Bowen Builders,100241,14/02/2013,10180155
Housing Revenue Account ,Unplanned Maintenance and Repair,UMR00,R&M External Contractors,0100,1541.24,Bowen Builders,100241,14/02/2013,10180320
Capital Program ,Disabled Adaptations,HCR01,Capital Contract Payments,5000,88.05,Bowen Builders,100241,14/02/2013,10180320
Housing Revenue Account ,Unplanned Maintenance and Repair,UMR00,R&M External Contractors,0100,451.28,Bowen Builders,100241,21/02/2013,10180604
Housing Revenue Account ,Unplanned Maintenance and Repair,UMR00,R&M External Contractors,0100,1145.14,Bowen Builders,100241,28/02/2013,10180737
Housing Revenue Account ,Unplanned Maintenance and Repair,UMR00,R&M External Contractors,0100,1503.39,Bowen Builders,100241,28/02/2013,10180878
Resources & Corporate Governance,Corporate Property R&M,CPA01,R&M External Contractors,0100,737.50,Barron McCann Ltd,100248,28/02/2013,10180768
Resources & Corporate Governance ,Human Resources Centralised Services,RES31,Training fees,0011,1400.00,Coventry City Council,100320,21/02/2013,10180568
Sustainable Environment ,Clinical Waste,REF04,External Contractor & Operator,0742,513.03,OCS Group UK Ltd t/a Cannon,100436,21/02/2013,10180212
Resources & Corporate Governance ,Domestic Waste Collection,WWC00,Vehicle Repair and Maintenance,0200,853.16,Dennis Eagle Ltd,100559,07/02/2013,10179760
,User Balance Sheet Cost Centre,BSU,Section Agreements,9865,9052.58,Dunchurch Parish Council,100564,28/02/2013,10180884
Resources & Corporate Governance,Corporate Property R&M,CPA01,R&M External Contractors,0100,449.50,Dunchurch Services (Rugby) Ltd,100565,21/02/2013,10180003
Capital Program ,Bathroom Modifications,HIS01,Capital Contract Payments,5000,7485.00,JADA Building & Maintenance Services Ltd,100583,07/02/2013,10179395
Capital Program ,Bathroom Modifications,HIS01,Capital Contract Payments,5000,9980.00,JADA Building & Maintenance Services Ltd,100583,07/02/2013,10179858
Housing Revenue Account ,Unplanned Maintenance and Repair,UMR00,R&M External Contractors,0100,6793.34,JADA Building & Maintenance Services Ltd,100583,07/02/2013,10179888
Capital Program ,Disabled Adaptations,HCR01,Capital Contract Payments,5000,16.62,JADA Building & Maintenance Services Ltd,100583,07/02/2013,10179888
Capital Program ,Bathroom Modifications,HIS01,Capital Contract Payments,5000,75.50,JADA Building & Maintenance Services Ltd,100583,07/02/2013,10179888
Housing Revenue Account ,Unplanned Maintenance and Repair,UMR00,R&M External Contractors,0100,2352.14,JADA Building & Maintenance Services Ltd,100583,14/02/2013,10180162
Capital Program ,Disabled Adaptations,HCR01,Capital Contract Payments,5000,2700.00,JADA Building & Maintenance Services Ltd,100583,14/02/2013,10180162
Housing Revenue Account ,Unplanned Maintenance and Repair,UMR00,R&M External Contractors,0100,862.31,Dulux Decorator Centres,100597,14/02/2013,10180184
Housing Revenue Account ,Unplanned Maintenance and Repair,UMR00,R&M External Contractors,0100,2750.00,Lee Davies Decorating,100600,07/02/2013,10180058
Housing Revenue Account ,Unplanned Maintenance and Repair,UMR00,R&M External Contractors,0100,2250.00,Lee Davies Decorating,100600,21/02/2013,10180603
Resources & Corporate Governance,Corporate Property Central Utilities,CPA02,Gas,0131,1953.55,ESPO,100641,28/02/2013,10180453
Resources & Corporate Governance ,WSU Depot,WDP00,Gas,0131,1264.00,ESPO,100641,21/02/2013,10180470
Capital Program ,Fire Risk Assessment,HCE18,Capital Contract Payments,5000,3946.20,Nationwide Windows Ltd,100808,21/02/2013,10179024
Resources & Corporate Governance ,Trade Waste Collection,WWC01,External Contractor & Operator,0742,1275.05,Container Services UK Limited,100811,14/02/2013,10180232
,Balance Sheet,BS,Car Leasing Scheme,9244,-1270.00,Lex Autolease Ltd,100844,14/02/2013,10179281
,Balance Sheet,BS,Car Leasing Scheme,9244,2897.76,Lex Autolease Ltd,100844,14/02/2013,10180193
Economy Development & Culture,Art Gallery and Museum,AGM00,Materials,0303,454.70,Greenham,100890,07/02/2013,10180027
Capital Program ,Bathroom Modifications,HIS01,Capital Contract Payments,5000,8955.00,B Hartwell Plumbers Ltd,100989,07/02/2013,10179773
Economy Development & Culture,Planning General/Income,PLN00,Ref. Books Journals & Magazines,0353,1321.00,Haymarket Publishing Services Ltd,101038,14/02/2013,10180291
Housing Revenue Account ,Unplanned Maintenance and Repair,UMR00,R&M External Contractors,0100,3980.00,Hardall International Limited,101091,28/02/2013,10180784
Housing Revenue Account ,Supervision and Management General,MAN00,Subscriptions,0421,5059.93,Housemark,101106,07/02/2013,10179777
Resources & Corporate Governance ,Town Hall,OFF00,Furniture,0302,626.01,IE Office Equipment Ltd,101114,21/02/2013,10180242
Resources & Corporate Governance ,Highways,WHG00,Materials,0303,267.02,Instarmac Group Plc,101128,07/02/2013,10179535
Resources & Corporate Governance,Handy man,WHM00,Materials,0303,159.32,Instarmac Group Plc,101128,07/02/2013,10179535
Resources & Corporate Governance ,Grounds Maintenance,WGM00,Training fees,0011,1740.00,ICCM,101138,21/02/2013,10180614
Resources & Corporate Governance ,Customer and Information Strategy,CIS10,Hardware Maintenance,0376,1650.00,Insite Ltd,101144,07/02/2013,10179826
Housing Revenue Account ,Control Centre (HRA),CCE00,Maintenance of Equipment,0301,13110.00,Chubb Systems LTD,101154,07/02/2013,10180077
,User Balance Sheet Cost Centre,BSU,Section Agreements,9865,1209.80,James Coles & Sons (Nurseries) Ltd,101165,21/02/2013,10180294
Capital Program ,Kitchen Modifications,HIK10,Capital Contract Payments,5000,787.76,M & J Engineers Ltd,101278,07/02/2013,10179678
Housing Revenue Account ,Unplanned Maintenance and Repair,UMR00,R&M External Contractors,0100,3860.00,MBG Decorators (Rugby Ltd),101288,07/02/2013,10179792
Housing Revenue Account ,Unplanned Maintenance and Repair,UMR00,R&M External Contractors,0100,4128.60,MBG Decorators (Rugby Ltd),101288,07/02/2013,10180049
Housing Revenue Account ,Unplanned Maintenance and Repair,UMR00,R&M External Contractors,0100,3575.00,MBG Decorators (Rugby Ltd),101288,14/02/2013,10180321
Housing Revenue Account ,Unplanned Maintenance and Repair,UMR00,R&M External Contractors,0100,3815.00,MBG Decorators (Rugby Ltd),101288,28/02/2013,10180736
Resources & Corporate Governance,Handy man,WHM00,Materials,0303,655.70,Melbros Ltd,101291,07/02/2013,10179642
Resources & Corporate Governance,Handy man,WHM00,Materials,0303,753.00,Melbros Ltd,101291,14/02/2013,10179681
Resources & Corporate Governance,Handy man,WHM00,Materials,0303,780.00,Melbros Ltd,101291,14/02/2013,10180083
Resources & Corporate Governance,Handy man,WHM00,Materials,0303,447.01,Melbros Ltd,101291,14/02/2013,10180130
Resources & Corporate Governance,Handy man,WHM00,External Contractor & Operator,0742,582.90,M W D Services Ltd,101293,07/02/2013,10179327
Resources & Corporate Governance,Corporate Property R&M,CPA01,R&M External Contractors,0100,425.71,M W D Services Ltd,101293,14/02/2013,10179789
Resources & Corporate Governance,Corporate Property R&M,CPA01,R&M External Contractors,0100,662.00,Msm Environmental Services,101317,28/02/2013,10180157
Resources & Corporate Governance,Corporate Property R&M,CPA01,R&M External Contractors,0100,1120.00,Msm Environmental Services,101317,14/02/2013,10180158
Sustainable Environment ,Street Scene,ENV30,R&M External Contractors,0100,900.00,Middlemarch Environmental Ltd,101337,07/02/2013,10179871
Resources & Corporate Governance ,Domestic Waste Collection,WWC00,Vehicle Repair and Maintenance,0200,905.00,Noden Truck Centre Ltd,101368,28/02/2013,10180844
Resources & Corporate Governance ,Domestic Waste Collection,WWC00,Vehicle Repair and Maintenance,0200,3143.89,Noden Truck Centre Ltd,101368,28/02/2013,10180868
Economy Development & Culture,Visitor Centre,VSC00,Events Tickets - Zero Rated,1405,661.29,National Express Ltd,101392,14/02/2013,10179785
Capital Program ,General Renewal Area Expenditure,RNA00,Capital Contract Payments,5000,810.00,Heart of England Housing Association,101400,07/02/2013,10179804
Sustainable Environment ,Grass Cutting,PKS13,External Contractor & Operator,0742,1468.00,Pailton Parish Council,101419,07/02/2013,10180099
Resources & Corporate Governance ,Grounds Maintenance,WGM00,Vehicle Running Costs,0201,645.00,Post Office Ltd,101429,14/02/2013,10180188
Resources & Corporate Governance ,Highways,WHG00,Vehicle Running Costs,0201,330.00,Post Office Ltd,101429,14/02/2013,10180188
Resources & Corporate Governance ,Street Cleansing,WSC00,Vehicle Running Costs,0201,215.00,Post Office Ltd,101429,14/02/2013,10180188
Resources & Corporate Governance ,Domestic Waste Collection,WWC00,Vehicle Running Costs,0201,650.00,Post Office Ltd,101429,14/02/2013,10180188
Resources & Corporate Governance ,Street Cleansing,WSC00,Vehicle Running Costs,0201,215.00,Post Office Ltd,101429,21/02/2013,10180559
Resources & Corporate Governance ,Domestic Waste Collection,WWC00,Vehicle Running Costs,0201,615.00,Post Office Ltd,101429,21/02/2013,10180559
Sustainable Inclusive Communities,Sewage Disposal Plant,SDP00,R&M External Contractors,0100,520.28,PJT Pumping Services,101438,14/02/2013,10180289
Sustainable Environment ,Caldecott Park/Town Centre Area,PKS00,R&M External Contractors,0100,512.52,PJT Pumping Services,101438,14/02/2013,10180290
Resources & Corporate Governance,Handy man,WHM00,External Contractor & Operator,0742,768.96,Lafarge Aggregates Limited,101503,21/02/2013,10180134
Capital Program ,Electric to Gas Conversions,HIM04,Capital Contract Payments,5000,15658.00,Reeds Plumbing & Heating Contractors Ltd,101504,07/02/2013,10179307
Capital Program ,Disabled Facilities Grant,REN01,Capital Grants,5014,3870.00,Reeds Plumbing & Heating Contractors Ltd,101504,21/02/2013,10180195
Capital Program ,Electric to Gas Conversions,HIM04,Capital Contract Payments,5000,22104.00,Reeds Plumbing & Heating Contractors Ltd,101504,14/02/2013,10180245
Resources & Corporate Governance,Central Business Support Services,CSS15,Postage & Distribution,0370,122.83,Royal Mail,101554,07/02/2013,10177154
Resources & Corporate Governance ,Borough Elections,ELC00,Postage & Distribution,0370,2124.80,Royal Mail,101554,07/02/2013,10177154
Economy Development & Culture,Art Gallery and Museum,AGM00,Postage & Distribution,0370,0.97,Royal Mail,101554,07/02/2013,10178697
Economy Development & Culture,Building Control Services,BCS00,Postage & Distribution,0370,2.09,Royal Mail,101554,07/02/2013,10178697
Economy Development & Culture,Building Regulation Fee Earning Account,BCS99,Postage & Distribution,0370,2.77,Royal Mail,101554,07/02/2013,10178697
Economy Development & Culture,Car Parks General,CPK01,Postage & Distribution,0370,41.82,Royal Mail,101554,07/02/2013,10178697
Resources & Corporate Governance,Central Business Support Services,CSS15,Postage & Distribution,0370,298.00,Royal Mail,101554,07/02/2013,10178697
Resources & Corporate Governance ,Council Tax and NNDR Collection,CTX01,Postage & Distribution,0370,190.89,Royal Mail,101554,07/02/2013,10178697
Economy Development & Culture,Decrim. of Car Parking on street parking,DPE02,Postage & Distribution,0370,167.27,Royal Mail,101554,07/02/2013,10178697
Resources & Corporate Governance ,Electoral Registration,ERG00,Postage & Distribution,0370,4.54,Royal Mail,101554,07/02/2013,10178697
Sustainable Inclusive Communities,Housing Benefit Administration,HBA00,Postage & Distribution,0370,228.02,Royal Mail,101554,07/02/2013,10178697
Housing Revenue Account ,Supervision and Management General,MAN00,Postage & Distribution,0370,120.83,Royal Mail,101554,07/02/2013,10178697
Economy Development & Culture,Planning General/Income,PLN00,Postage & Distribution,0370,268.85,Royal Mail,101554,07/02/2013,10178697
Economy Development & Culture,Visitor Centre,VSC00,Postage & Distribution,0370,3.22,Royal Mail,101554,07/02/2013,10178697
Resources & Corporate Governance ,General Administration,WAD00,Postage & Distribution,0370,42.36,Royal Mail,101554,07/02/2013,10178697
Resources & Corporate Governance ,Borough Elections,ELC00,Postage & Distribution,0370,-4526.89,Royal Mail,101554,07/02/2013,10178938
Economy Development & Culture,Art Gallery and Museum,AGM00,Postage & Distribution,0370,1.07,Royal Mail,101554,07/02/2013,10179323
Economy Development & Culture,Building Control Services,BCS00,Postage & Distribution,0370,3.17,Royal Mail,101554,07/02/2013,10179323
Economy Development & Culture,Building Regulation Fee Earning Account,BCS99,Postage & Distribution,0370,4.21,Royal Mail,101554,07/02/2013,10179323
Economy Development & Culture,Car Parks General,CPK01,Postage & Distribution,0370,49.09,Royal Mail,101554,07/02/2013,10179323
Resources & Corporate Governance,Central Business Support Services,CSS15,Postage & Distribution,0370,385.31,Royal Mail,101554,07/02/2013,10179323
Resources & Corporate Governance ,Council Tax and NNDR Collection,CTX01,Postage & Distribution,0370,328.37,Royal Mail,101554,07/02/2013,10179323
Economy Development & Culture,Decrim. of Car Parking on street parking,DPE02,Postage & Distribution,0370,196.37,Royal Mail,101554,07/02/2013,10179323
Resources & Corporate Governance ,Electoral Registration,ERG00,Postage & Distribution,0370,19.53,Royal Mail,101554,07/02/2013,10179323
Sustainable Inclusive Communities,Housing Benefit Administration,HBA00,Postage & Distribution,0370,175.90,Royal Mail,101554,07/02/2013,10179323
Housing Revenue Account ,Supervision and Management General,MAN00,Postage & Distribution,0370,68.43,Royal Mail,101554,07/02/2013,10179323
Economy Development & Culture,Planning General/Income,PLN00,Postage & Distribution,0370,332.54,Royal Mail,101554,07/02/2013,10179323
Economy Development & Culture,Visitor Centre,VSC00,Postage & Distribution,0370,0.31,Royal Mail,101554,07/02/2013,10179323
Resources & Corporate Governance ,General Administration,WAD00,Postage & Distribution,0370,29.26,Royal Mail,101554,07/02/2013,10179323
Economy Development & Culture,Art Gallery and Museum,AGM00,Postage & Distribution,0370,4.75,Royal Mail,101554,21/02/2013,10180023
Economy Development & Culture,Building Control Services,BCS00,Postage & Distribution,0370,2.53,Royal Mail,101554,21/02/2013,10180023
Economy Development & Culture,Building Regulation Fee Earning Account,BCS99,Postage & Distribution,0370,3.35,Royal Mail,101554,21/02/2013,10180023
Economy Development & Culture,Car Parks General,CPK01,Postage & Distribution,0370,20.96,Royal Mail,101554,21/02/2013,10180023
Resources & Corporate Governance,Central Business Support Services,CSS15,Postage & Distribution,0370,419.95,Royal Mail,101554,21/02/2013,10180023
Resources & Corporate Governance ,Council Tax and NNDR Collection,CTX01,Postage & Distribution,0370,416.53,Royal Mail,101554,21/02/2013,10180023
Economy Development & Culture,Decrim. of Car Parking on street parking,DPE02,Postage & Distribution,0370,83.82,Royal Mail,101554,21/02/2013,10180023
Resources & Corporate Governance ,Electoral Registration,ERG00,Postage & Distribution,0370,1.99,Royal Mail,101554,21/02/2013,10180023
Sustainable Inclusive Communities,Housing Benefit Administration,HBA00,Postage & Distribution,0370,169.41,Royal Mail,101554,21/02/2013,10180023
Housing Revenue Account ,Supervision and Management General,MAN00,Postage & Distribution,0370,85.22,Royal Mail,101554,21/02/2013,10180023
Economy Development & Culture,Planning General/Income,PLN00,Postage & Distribution,0370,204.39,Royal Mail,101554,21/02/2013,10180023
Economy Development & Culture,Visitor Centre,VSC00,Postage & Distribution,0370,1.76,Royal Mail,101554,21/02/2013,10180023
Resources & Corporate Governance ,General Administration,WAD00,Postage & Distribution,0370,20.38,Royal Mail,101554,21/02/2013,10180023
Economy Development & Culture,Art Gallery and Museum,AGM00,Grants,0420,500.00,Rugby Archaeological Society,101565,07/02/2013,10179913
Housing Revenue Account ,Unplanned Maintenance and Repair,UMR00,R&M External Contractors,0100,2282.75,Rugby Plastering Services,101602,07/02/2013,10180036
Housing Revenue Account ,Unplanned Maintenance and Repair,UMR00,R&M External Contractors,0100,1681.85,Rugby Plastering Services,101602,21/02/2013,10180533
Resources & Corporate Governance,Corporate Property Central Utilities,CPA02,Water Services,0143,3251.62,Severn Trent Water Ltd,101610,14/02/2013,10179807
Sustainable Inclusive Communities,Woodside Park,TVR00,Water Services,0143,2473.84,Severn Trent Water Ltd,101610,28/02/2013,10180897
Capital Program ,Disabled Facilities Grant,REN01,Capital Grants,5014,2100.00,Stannah Stairlifts Ltd,101623,07/02/2013,10180009
Housing Revenue Account ,Unplanned Maintenance and Repair,UMR00,R&M External Contractors,0100,996.00,Steve Diston Contract Flooring,101668,07/02/2013,10179897
Housing Revenue Account ,Unplanned Maintenance and Repair,UMR00,R&M External Contractors,0100,1188.00,Steve Diston Contract Flooring,101668,14/02/2013,10180225
Resources & Corporate Governance,Handy man,WHM00,Materials,0303,480.00,Travis Perkins Trading Co Ltd,101732,28/02/2013,10180491
Resources & Corporate Governance ,Domestic Waste Collection,WWC00,Vehicle Running Costs,0201,920.00,HI-Q Motorway,101736,21/02/2013,10179705
Resources & Corporate Governance ,Domestic Waste Collection,WWC00,Vehicle Running Costs,0201,510.47,HI-Q Motorway,101736,14/02/2013,10180114
Resources & Corporate Governance ,Trade Waste Collection,WWC01,Vehicle Running Costs,0201,188.00,HI-Q Motorway,101736,14/02/2013,10180114
Resources & Corporate Governance ,Grounds Maintenance,WGM00,Tools,0304,612.50,Tudor Environmental,101743,07/02/2013,10179718
Resources & Corporate Governance ,Domestic Waste Collection,WWC00,Vehicle Repair and Maintenance,0200,682.85,Terberg Matec Uk,101761,14/02/2013,10180198
Economy Development & Culture,Car Parks General,CPK01,Telephone Expenses,0371,48.60,Vodafone Corporate Ltd,101831,07/02/2013,10179580
Economy Development & Culture,Decrim. of Car Parking on street parking,DPE02,Telephone Expenses,0371,951.58,Vodafone Corporate Ltd,101831,07/02/2013,10179580
Housing Revenue Account ,Sheltered Housing,AGP00,Telephone Expenses,0371,383.52,Vodafone Corporate Ltd,101831,21/02/2013,10179583
Economy Development & Culture,Building Control Services,BCS00,Telephone Expenses,0371,2.61,Vodafone Corporate Ltd,101831,21/02/2013,10179583
Economy Development & Culture,Building Regulation Fee Earning Account,BCS99,Telephone Expenses,0371,3.45,Vodafone Corporate Ltd,101831,21/02/2013,10179583
Housing Revenue Account ,Control Centre (HRA),CCE00,Telephone Expenses,0371,12.09,Vodafone Corporate Ltd,101831,21/02/2013,10179583
Resources & Corporate Governance ,Council Tax and NNDR Collection,CTX01,Telephone Expenses,0371,7.32,Vodafone Corporate Ltd,101831,21/02/2013,10179583
Sustainable Inclusive Communities,Housing Options Team,HOT00,Telephone Expenses,0371,49.53,Vodafone Corporate Ltd,101831,21/02/2013,10179583
Housing Revenue Account ,Supervision and Management General,MAN00,Telephone Expenses,0371,313.97,Vodafone Corporate Ltd,101831,21/02/2013,10179583
Housing Revenue Account ,Estate Management,MAN22,Telephone Expenses,0371,54.00,Vodafone Corporate Ltd,101831,21/02/2013,10179583
Housing Revenue Account ,Multi-Storey Flats,MSF00,Telephone Expenses,0371,7.50,Vodafone Corporate Ltd,101831,21/02/2013,10179583
,User Balance Sheet Cost Centre,BSU,Section Agreements,9865,686.66,Warwickshire Wildlife Trust,101860,14/02/2013,10179649
Resources & Corporate Governance ,Retired Employees,RET00,Additional Pension Payments,0014,5680.00,West Midlands Councils,101880,07/02/2013,10179995
CSW Superfast Broadband,CSW Superfast Broadband,RBB00,Capital Contract Payments,5000,1145.78,Warwickshire County Council,101893,07/02/2013,10179891
Resources & Corporate Governance,Customer Support Services,CSS00,External Contractor & Operator,0742,1870.00,Warwickshire County Council,101893,07/02/2013,10180014
Resources & Corporate Governance ,Warwickshire On Line Partnership,JCC10,Payments to Other Local Authorities,0710,5113.78,Warwickshire County Council,101893,14/02/2013,10180200
Housing Revenue Account ,Unplanned Maintenance and Repair,UMR00,R&M External Contractors,0100,684.26,Warwickshire County Council,101893,21/02/2013,10180564
Economy Development & Culture,Decrim. of Car Parking on street parking,DPE02,Payments to Other Local Authorities,0710,131451.00,Warwickshire County Council,101893,28/02/2013,10180888
Resources & Corporate Governance,Handy man,WHM00,External Contractor & Operator,0742,6450.00,Darren Wilson Roofing Ltd,101911,21/02/2013,10179892
Capital Program ,Electric to Gas Conversions,HIM04,Capital Contract Payments,5000,9613.14,Adroit Services Ltd,101939,07/02/2013,10179398
Housing Revenue Account ,Unplanned Maintenance and Repair,UMR00,R&M External Contractors,0100,1715.29,Adroit Services Ltd,101939,07/02/2013,10179788
Capital Program ,Electric to Gas Conversions,HIM04,Capital Contract Payments,5000,9176.76,Adroit Services Ltd,101939,07/02/2013,10179861
Housing Revenue Account ,Unplanned Maintenance and Repair,UMR00,R&M External Contractors,0100,635.48,Adroit Services Ltd,101939,14/02/2013,10180159
Capital Program ,Electric to Gas Conversions,HIM04,Capital Contract Payments,5000,7537.14,Adroit Services Ltd,101939,14/02/2013,10180243
Housing Revenue Account ,Unplanned Maintenance and Repair,UMR00,R&M External Contractors,0100,1834.96,Adroit Services Ltd,101939,28/02/2013,10180876
Housing Revenue Account ,Unplanned Maintenance and Repair,UMR00,R&M External Contractors,0100,595.43,Adroit Services Ltd,101939,28/02/2013,10180877
Resources & Corporate Governance ,"Communications, Consultation and Information Team",BTR20,Publicity & Marketing,0377,1613.00,Johnston Publishing Ltd,107468,07/02/2013,10180030
Resources & Corporate Governance ,Change Team,BTR50,Payments to Other Local Authorities,0710,14175.68,Nuneaton & Bedworth Borough Council,108060,14/02/2013,10180361
Resources & Corporate Governance,Corporate Property R&M,CPA01,R&M External Contractors,0100,4995.00,Ser-Tec Systems Ltd,108074,21/02/2013,10180430
,Balance Sheet,BS,Car Loan Scheme,9261,3600.00,RICHARD PROTO CARS,108153,28/02/2013,10180915
Resources & Corporate Governance ,Central Telephone Service,TEL00,Telephone Expenses,0371,907.13,British Telecommunications PLC,108425,28/02/2013,10180727
Resources & Corporate Governance,Central Business Support Services,CSS15,Stationery Supplies,0350,905.25,Bank Security Printing Ltd,108686,21/02/2013,10180359
Sustainable Environment,Regulatory Services,REG00,Materials,0303,988.61,Killgerm Chemicals Ltd,109161,28/02/2013,10180796
Resources & Corporate Governance ,Warwickshire On Line Partnership,JCC10,Payments to Other Local Authorities,0710,13309.23,Warwick District Council,111228,28/02/2013,10180730
Resources & Corporate Governance,Central Business Support Services,CSS15,Photocopying,0354,603.44,Ricoh UK Limited,111532,07/02/2013,10179894
Housing Revenue Account ,Unplanned Maintenance and Repair,UMR00,R&M External Contractors,0100,708.00,Dampco,111839,07/02/2013,10178844
Housing Revenue Account ,Unplanned Maintenance and Repair,UMR00,R&M External Contractors,0100,743.00,Dampco,111839,14/02/2013,10180267
Capital Program ,Crematorium Project,BUR04,Capital Contract Payments,5000,805.11,Craddocks Nurseries Ltd,112031,14/02/2013,10179983
Resources & Corporate Governance ,Council Tax and NNDR Collection,CTX01,Other,0763,2325.00,Experian Ltd,112302,07/02/2013,10179874
Resources & Corporate Governance ,Support Services,CIS20,Training fees,0011,660.00,Civica UK Ltd,112724,14/02/2013,10180310
Resources & Corporate Governance ,Maintenance of Customer Services Systems,CIS21,Software Maintenance,0374,20643.66,Civica UK Ltd,112724,21/02/2013,10180429
Resources & Corporate Governance ,Domestic Waste Collection,WWC00,Agency Staff,0003,446.35,Extra Personnel Limited,112996,28/02/2013,10180837
Resources & Corporate Governance ,TREE WORKS,WGM01,External Contractor & Operator,0742,577.50,Acorn Environmental Management Group Ltd,113313,21/02/2013,10180276
Sustainable Inclusive Communities,Housing Benefit Administration,HBA00,Agency Staff,0003,999.00,Badenoch & Clark,113435,21/02/2013,10180385
Sustainable Inclusive Communities,Housing Benefit Administration,HBA00,Agency Staff,0003,695.25,Badenoch & Clark,113435,28/02/2013,10180720
Economy Development & Culture,Ken Marriott Leisure Centre,KML00,External Contractor & Operator,0742,25181.06,DC Leisure Management Ltd (Otium),114443,07/02/2013,10180013
Economy Development & Culture,Street Furniture,HIG01,External Contractor & Operator,0742,603.00,Streetmaster (South Wales) Ltd,114898,07/02/2013,10180024
Resources & Corporate Governance ,General Financial Services,GFS00,Other Insurance Premiums,0440,139660.86,Zurich Insurance plc,116530,07/02/2013,10178934
Resources & Corporate Governance ,General Financial Services,GFS00,Other Insurance Premiums,0440,6662.82,Zurich Insurance plc,116530,07/02/2013,10178935
Sustainable Environment ,Cemeteries General,CEM00,R&M External Contractors,0100,912.00,Lushglen,117749,21/02/2013,10180681
Resources & Corporate Governance,Corporate Property Central Utilities,CPA02,Electricity,0130,9916.84,Southern Electric,118976,28/02/2013,10180360
Resources & Corporate Governance,Corporate Property Central Utilities,CPA02,Electricity,0130,-385.84,Southern Electric,118976,28/02/2013,10180369
Resources & Corporate Governance ,Toilet Cleaning,WBC01,Agency Staff,0003,522.90,G-Staff Ltd,120173,07/02/2013,10179485
Resources & Corporate Governance,Handy man,WHM00,Agency Staff,0003,83.18,G-Staff Ltd,120173,07/02/2013,10179485
Resources & Corporate Governance ,Street Cleansing,WSC00,Agency Staff,0003,206.07,G-Staff Ltd,120173,07/02/2013,10179485
Resources & Corporate Governance ,Domestic Waste Collection,WWC00,Agency Staff,0003,1123.60,G-Staff Ltd,120173,07/02/2013,10179485
Resources & Corporate Governance ,Trade Waste Collection,WWC01,Agency Staff,0003,170.90,G-Staff Ltd,120173,07/02/2013,10179485
Resources & Corporate Governance ,Street Cleansing,WSC00,Agency Staff,0003,368.89,G-Staff Ltd,120173,14/02/2013,10179824
Resources & Corporate Governance ,Domestic Waste Collection,WWC00,Agency Staff,0003,356.89,G-Staff Ltd,120173,14/02/2013,10179824
Resources & Corporate Governance ,Trade Waste Collection,WWC01,Agency Staff,0003,122.27,G-Staff Ltd,120173,14/02/2013,10179824
Resources & Corporate Governance ,Toilet Cleaning,WBC01,Agency Staff,0003,404.20,G-Staff Ltd,120173,14/02/2013,10180199
Resources & Corporate Governance ,Street Cleansing,WSC00,Agency Staff,0003,149.55,G-Staff Ltd,120173,14/02/2013,10180199
Resources & Corporate Governance ,Domestic Waste Collection,WWC00,Agency Staff,0003,1620.95,G-Staff Ltd,120173,14/02/2013,10180199
Resources & Corporate Governance ,Trade Waste Collection,WWC01,Agency Staff,0003,585.59,G-Staff Ltd,120173,14/02/2013,10180199
Resources & Corporate Governance ,Toilet Cleaning,WBC01,Agency Staff,0003,61.50,G-Staff Ltd,120173,21/02/2013,10180513
Resources & Corporate Governance,Handy man,WHM00,Agency Staff,0003,160.81,G-Staff Ltd,120173,21/02/2013,10180513
Resources & Corporate Governance ,Street Cleansing,WSC00,Agency Staff,0003,426.29,G-Staff Ltd,120173,21/02/2013,10180513
Resources & Corporate Governance ,Domestic Waste Collection,WWC00,Agency Staff,0003,1351.33,G-Staff Ltd,120173,21/02/2013,10180513
Resources & Corporate Governance ,Trade Waste Collection,WWC01,Agency Staff,0003,585.59,G-Staff Ltd,120173,21/02/2013,10180513
Resources & Corporate Governance ,Human Resources Centralised Services,RES31,Training fees,0011,1120.46,Nelson Training,120218,21/02/2013,10180547
Resources & Corporate Governance ,Maintenance of Customer Services Systems,CIS21,Software Maintenance,0374,31725.30,Northgate Information Solutions UK Ltd,121606,21/02/2013,10180190
Resources & Corporate Governance ,Maintenance of Customer Services Systems,CIS21,Software Maintenance,0374,1883.02,Gower Consultants Ltd,121747,07/02/2013,10180000
Resources & Corporate Governance ,Maintenance of Customer Services Systems,CIS21,Software Maintenance,0374,827.90,Gower Consultants Ltd,121747,07/02/2013,10180001
Housing Revenue Account ,Supervision and Management General,MAN00,Publicity & Marketing,0377,1225.00,Janus Kreative,121748,21/02/2013,10180610
Housing Revenue Account ,Maintenance of Open Spaces,MOS00,External Contractor & Operator,0742,479.69,Brinklow Quarry,122921,14/02/2013,10179936
Resources & Corporate Governance ,Highways,WHG00,External Contractor & Operator,0742,134.97,Brinklow Quarry,122921,14/02/2013,10179936
Resources & Corporate Governance ,Central Telephone Service,TEL00,Telephone Expenses,0371,1156.56,Cable & Wireless,123224,14/02/2013,10180034
Resources & Corporate Governance ,Grounds Maintenance,WGM00,Materials,0303,1225.00,Rigby Taylor Ltd,123342,28/02/2013,10180630
Resources & Corporate Governance ,Grounds Maintenance,WGM00,Materials,0303,892.50,Rigby Taylor Ltd,123342,28/02/2013,10180747
Resources & Corporate Governance ,Domestic Waste Collection,WWC00,Materials,0303,14017.80,SSI Schaefer Ltd,123543,28/02/2013,10180623
Resources & Corporate Governance ,Domestic Waste Collection,WWC00,Materials,0303,14017.80,SSI Schaefer Ltd,123543,28/02/2013,10180624
Resources & Corporate Governance ,IT Procurement,CMP00,IT Capital Expenditure,5025,1737.50,Integra Associates Ltd,124585,07/02/2013,10179363
Resources & Corporate Governance ,IT Procurement,CMP00,IT Capital Expenditure,5025,1390.00,Integra Associates Ltd,124585,21/02/2013,10180123
Housing Revenue Account ,Unplanned Maintenance and Repair,UMR00,R&M External Contractors,0100,200.00,George and Company (Surveyors) Ltd,126668,14/02/2013,10180156
Housing Revenue Account ,Property Maintenance,MAN23,External Contractor & Operator,0742,350.00,George and Company (Surveyors) Ltd,126668,14/02/2013,10180156
Sustainable Environment,Bikeability,REG10,Personal Protective Clothing,0340,655.00,Thorntons Cycle Centre,127933,21/02/2013,10180545
Sustainable Environment ,Crime and Disorder Activities,CAD00,Other Miscellaneous Expenses,0444,675.00,"Rapid Vision Systems Ltd.,",128670,28/02/2013,10180546
Resources & Corporate Governance,Handy man,WHM00,External Contractor & Operator,0742,547.50,M P Hudson & Son,129334,14/02/2013,10180234
Resources & Corporate Governance,Handy man,WHM00,External Contractor & Operator,0742,541.75,M P Hudson & Son,129334,28/02/2013,10180696
Economy Development & Culture,Decrim. of Car Parking on street parking,DPE02,Cash Collection,0744,734.32,Jade Security Services Ltd,131711,14/02/2013,10180144
Economy Development & Culture,Car Parks General,CPK01,Cash Collection,0744,838.44,Jade Security Services Ltd,131711,14/02/2013,10180145
Capital Program ,Private Sector Renovation Loans,REN00,Capital Contract Payments,5000,3354.00,PJ Electrical,132892,07/02/2013,10179996
Economy Development & Culture,Town Centre CCTV and Management,TVM00,Other Agencies,0734,20115.98,Rugby First Ltd - BID,133176,14/02/2013,10180221
Housing Revenue Account ,Unplanned Maintenance and Repair,UMR00,R&M External Contractors,0100,2453.22,Sunfish Services Ltd,133886,07/02/2013,10180043
Housing Revenue Account ,Unplanned Maintenance and Repair,UMR00,R&M External Contractors,0100,1990.57,Delec Ltd,133887,07/02/2013,10180056
Housing Revenue Account ,Unplanned Maintenance and Repair,UMR00,R&M External Contractors,0100,2852.00,Delec Ltd,133887,14/02/2013,10180325
Housing Revenue Account ,Unplanned Maintenance and Repair,UMR00,R&M External Contractors,0100,1493.94,Delec Ltd,133887,28/02/2013,10180733
Capital Program ,Rewiring,HCE20,Capital Contract Payments,5000,1500.00,Delec Ltd,133887,28/02/2013,10180733
Housing Revenue Account ,Unplanned Maintenance and Repair,UMR00,R&M External Contractors,0100,1816.03,Delec Ltd,133887,28/02/2013,10180834
Resources & Corporate Governance ,Garage Internal,WVR01,Materials,0303,957.20,Brenntag UK Limited,135098,28/02/2013,10180748
Housing Revenue Account ,Alfred Green Close AP,AGP01,Electricity,0130,586.87,Southern Electric,135653,21/02/2013,10180370
Housing Revenue Account ,John Thwaites Close AP,AGP08,Electricity,0130,264.84,Southern Electric,135653,21/02/2013,10180370
Housing Revenue Account ,Robotham Close AP,AGP11,Electricity,0130,398.40,Southern Electric,135653,21/02/2013,10180370
Housing Revenue Account ,Stacey Court AP,AGP12,Electricity,0130,192.99,Southern Electric,135653,21/02/2013,10180370
Housing Revenue Account ,Tanser Court AP,AGP17,Electricity,0130,2493.32,Southern Electric,135653,21/02/2013,10180370
Housing Revenue Account ,Eliot Court AP,AGP25,Electricity,0130,377.63,Southern Electric,135653,21/02/2013,10180370
Housing Revenue Account ,Hirst Close AP,AGP33,Electricity,0130,131.68,Southern Electric,135653,21/02/2013,10180370
Housing Revenue Account ,Assheton Close AP,AGP36,Electricity,0130,121.38,Southern Electric,135653,21/02/2013,10180370
Housing Revenue Account ,Bennett Court/Warwick Road AP,AGP38,Electricity,0130,25.07,Southern Electric,135653,21/02/2013,10180370
Housing Revenue Account ,Deepmore Road/Lytham Road AP,AGP42,Electricity,0130,467.69,Southern Electric,135653,21/02/2013,10180370
Housing Revenue Account ,Edmondson Close Dunchurch AP,AGP44,Electricity,0130,289.16,Southern Electric,135653,21/02/2013,10180370
Housing Revenue Account ,Harold Cox Place AP,AGP51,Electricity,0130,149.56,Southern Electric,135653,21/02/2013,10180370
Housing Revenue Account ,Parkfield Road/Lea Crescent AP,AGP71,Electricity,0130,-80.01,Southern Electric,135653,21/02/2013,10180370
Housing Revenue Account ,Miscellaneous AP,AGP99,Electricity,0130,18.56,Southern Electric,135653,21/02/2013,10180370
Housing Revenue Account ,Supervision and Management General,MAN00,Electricity,0130,23.97,Southern Electric,135653,21/02/2013,10180370
Resources & Corporate Governance ,Council Tax and NNDR Collection,CTX01,External Legal Costs,0741,1385.00,Summers Nigh Law,136330,07/02/2013,10179761
,Balance Sheet,BS,Car Leasing Scheme,9244,-864.17,GE Commercial Finance (Custom Fleet),137111,09/11/2012,10176123
Housing Revenue Account ,Unplanned Maintenance and Repair,UMR00,R&M External Contractors,0100,912.24,Regent Office Care Ltd T/A Regent Cleaning,138934,07/02/2013,10179794
Housing Revenue Account ,Unplanned Maintenance and Repair,UMR00,R&M External Contractors,0100,1118.63,Regent Office Care Ltd T/A Regent Cleaning,138934,14/02/2013,10180173
Housing Revenue Account ,Sheltered Housing,AGP00,Contract Cleaning,0170,14297.47,Regent Office Care Ltd T/A Regent Cleaning,138934,21/02/2013,10180366
Sustainable Inclusive Communities,Housing Options Team,HOT00,Contract Cleaning,0170,134.76,Regent Office Care Ltd T/A Regent Cleaning,138934,21/02/2013,10180366
Housing Revenue Account ,Estate Management,MAN22,Contract Cleaning,0170,3078.90,Regent Office Care Ltd T/A Regent Cleaning,138934,21/02/2013,10180366
Housing Revenue Account ,Multi-Storey Flats,MSF00,Contract Cleaning,0170,1731.90,Regent Office Care Ltd T/A Regent Cleaning,138934,21/02/2013,10180366
Resources & Corporate Governance ,Town Hall,OFF00,Contract Cleaning,0170,4280.55,Regent Office Care Ltd T/A Regent Cleaning,138934,28/02/2013,10180367
Resources & Corporate Governance ,WSU Depot,WDP00,Contract Cleaning,0170,219.00,Regent Office Care Ltd T/A Regent Cleaning,138934,28/02/2013,10180367
Resources & Corporate Governance ,Grounds Maintenance,WGM00,Contract Cleaning,0170,147.50,Regent Office Care Ltd T/A Regent Cleaning,138934,28/02/2013,10180367
Housing Revenue Account ,Asbestos Surveys,UMR05,R&M External Contractors,0100,5330.00,Rider Levett Bucknall UK Ltd,139918,14/02/2013,10180170
Housing Revenue Account ,Asbestos Surveys,UMR05,R&M External Contractors,0100,4160.00,Rider Levett Bucknall UK Ltd,139918,14/02/2013,10180323
Capital Program ,Kitchen Modifications,HIK10,Capital Contract Payments,5000,130.00,Rider Levett Bucknall UK Ltd,139918,14/02/2013,10180323
Sustainable Environment ,Caldecott Park/Town Centre Area,PKS00,External Contractor & Operator,0742,1080.00,D J Whitlock Plant Hire,140156,07/02/2013,10179613
Resources & Corporate Governance ,Domestic Waste Collection,WWC00,Vehicle Repair and Maintenance,0200,1076.09,Midlands Truck & Van Ltd,140322,07/02/2013,10179469
Resources & Corporate Governance ,Domestic Waste Collection,WWC00,Vehicle Repair and Maintenance,0200,850.44,Midlands Truck & Van Ltd,140322,07/02/2013,10179505
Resources & Corporate Governance ,Domestic Waste Collection,WWC00,Vehicle Repair and Maintenance,0200,1375.76,Midlands Truck & Van Ltd,140322,07/02/2013,10179514
Resources & Corporate Governance ,Domestic Waste Collection,WWC00,Vehicle Repair and Maintenance,0200,677.45,Midlands Truck & Van Ltd,140322,21/02/2013,10180643
Resources & Corporate Governance ,Customer and Information Strategy,CIS10,Telephone Expenses,0371,729.35,Zen Internet Ltd,141612,28/02/2013,10180719
Sustainable Environment ,Caldecott Park/Town Centre Area,PKS00,R&M External Contractors,0100,1005.00,Fountains Direct Limited,144391,07/02/2013,10179626
Resources & Corporate Governance ,Land Charges,LCH00,External Legal Costs,0741,453.87,Local Government Association,144471,21/02/2013,10180567
Resources & Corporate Governance ,General Financial Services,GFS00,External Contractor & Operator,0742,3046.97,Local Government Association,144471,21/02/2013,10180605
Economy Development & Culture,Car Parks General,CPK01,Other Agencies,0734,256.32,PATROL,144963,28/02/2013,10180880
Economy Development & Culture,Decrim. of Car Parking on street parking,DPE02,Other Agencies,0734,1025.28,PATROL,144963,28/02/2013,10180880
Housing Revenue Account ,Control Centre CCTV,CCE01,External Contractor & Operator,0742,15928.66,Securitas Security Personnel Ltd,145079,28/02/2013,10180786
Housing Revenue Account ,Property Maintenance,MAN23,Agency Staff,0003,1189.00,James Andrews Recruitment Solutions Ltd,145100,07/02/2013,10179778
Housing Revenue Account ,Property Maintenance,MAN23,Agency Staff,0003,1131.00,James Andrews Recruitment Solutions Ltd,145100,07/02/2013,10179779
Sustainable Inclusive Communities,Housing Options Team,HOT00,Agency Staff,0003,492.30,James Andrews Recruitment Solutions Ltd,145100,07/02/2013,10179780
Housing Revenue Account ,Property Maintenance,MAN23,Agency Staff,0003,1261.50,James Andrews Recruitment Solutions Ltd,145100,07/02/2013,10180008
Sustainable Inclusive Communities,Housing Options Team,HOT00,Agency Staff,0003,623.58,James Andrews Recruitment Solutions Ltd,145100,14/02/2013,10180101
Housing Revenue Account ,Property Maintenance,MAN23,Agency Staff,0003,607.17,James Andrews Recruitment Solutions Ltd,145100,21/02/2013,10180602
Housing Revenue Account ,Property Maintenance,MAN23,Agency Staff,0003,1073.00,James Andrews Recruitment Solutions Ltd,145100,28/02/2013,10180721
Housing Revenue Account ,Property Maintenance,MAN23,Agency Staff,0003,1239.75,James Andrews Recruitment Solutions Ltd,145100,28/02/2013,10180722
Housing Revenue Account ,Property Maintenance,MAN23,Agency Staff,0003,1238.80,James Andrews Recruitment Solutions Ltd,145100,28/02/2013,10180723
Resources & Corporate Governance ,Domestic Waste Collection,WWC00,Vehicle Repair and Maintenance,0200,1056.74,DEL Equipment UK,145372,14/02/2013,10179482
Resources & Corporate Governance ,Street Cleansing,WSC00,Agency Staff,0003,368.26,Blue Arrow Limited,145492,07/02/2013,10179710
Resources & Corporate Governance ,Domestic Waste Collection,WWC00,Agency Staff,0003,739.43,Blue Arrow Limited,145492,07/02/2013,10179710
Resources & Corporate Governance ,Street Cleansing,WSC00,Agency Staff,0003,70.00,Blue Arrow Limited,145492,21/02/2013,10180277
Resources & Corporate Governance ,Domestic Waste Collection,WWC00,Agency Staff,0003,389.10,Blue Arrow Limited,145492,21/02/2013,10180277
Resources & Corporate Governance ,Street Cleansing,WSC00,Agency Staff,0003,295.00,Blue Arrow Limited,145492,28/02/2013,10180615
Resources & Corporate Governance ,Domestic Waste Collection,WWC00,Agency Staff,0003,370.00,Blue Arrow Limited,145492,28/02/2013,10180615
Resources & Corporate Governance ,Human Resources Centralised Services,RES31,Training fees,0011,1087.80,G Wardle,145958,14/02/2013,10180125
Resources & Corporate Governance ,Street Cleansing,WSC00,Vehicle Repair and Maintenance,0200,720.00,RT Sweeper Services Ltd,146604,07/02/2013,10179763
Resources & Corporate Governance ,Street Cleansing,WSC00,Vehicle Repair and Maintenance,0200,430.00,RT Sweeper Services Ltd,146604,21/02/2013,10180213
Sustainable Environment ,Cemeteries General,CEM00,External Contractor & Operator,0742,972.50,UVS Sign & Design Ltd,146676,07/02/2013,10179500
Resources & Corporate Governance ,Retired Employees,RET00,Additional Pension Payments,0014,11563.16,WCC Pension Fund,146914,21/02/2013,10180587
Resources & Corporate Governance ,Human Resources Centralised Services,RES31,Training fees,0011,4559.00,Learning Nexus Ltd,146957,21/02/2013,10180396
Economy Development & Culture,Art Gallery and Museum,AGM00,Postage & Distribution,0370,0.35,TNT Post Midlands Ltd,146983,14/02/2013,10177101
Economy Development & Culture,Building Control Services,BCS00,Postage & Distribution,0370,10.02,TNT Post Midlands Ltd,146983,14/02/2013,10177101
Economy Development & Culture,Building Regulation Fee Earning Account,BCS99,Postage & Distribution,0370,13.28,TNT Post Midlands Ltd,146983,14/02/2013,10177101
Resources & Corporate Governance,Central Business Support Services,CSS15,Postage & Distribution,0370,1335.64,TNT Post Midlands Ltd,146983,14/02/2013,10177101
Resources & Corporate Governance ,Council Tax and NNDR Collection,CTX01,Postage & Distribution,0370,205.18,TNT Post Midlands Ltd,146983,14/02/2013,10177101
Resources & Corporate Governance ,Electoral Registration,ERG00,Postage & Distribution,0370,26.84,TNT Post Midlands Ltd,146983,14/02/2013,10177101
Sustainable Inclusive Communities,Housing Benefit Administration,HBA00,Postage & Distribution,0370,157.50,TNT Post Midlands Ltd,146983,14/02/2013,10177101
Housing Revenue Account ,Supervision and Management General,MAN00,Postage & Distribution,0370,58.22,TNT Post Midlands Ltd,146983,14/02/2013,10177101
Resources & Corporate Governance ,General Administration,WAD00,Postage & Distribution,0370,0.71,TNT Post Midlands Ltd,146983,14/02/2013,10177101
Economy Development & Culture,Art Gallery and Museum,AGM00,Postage & Distribution,0370,48.95,TNT Post Midlands Ltd,146983,07/02/2013,10179396
Economy Development & Culture,Building Control Services,BCS00,Postage & Distribution,0370,4.91,TNT Post Midlands Ltd,146983,07/02/2013,10179396
Economy Development & Culture,Building Regulation Fee Earning Account,BCS99,Postage & Distribution,0370,6.52,TNT Post Midlands Ltd,146983,07/02/2013,10179396
Resources & Corporate Governance,Central Business Support Services,CSS15,Postage & Distribution,0370,22.18,TNT Post Midlands Ltd,146983,07/02/2013,10179396
Resources & Corporate Governance ,Council Tax and NNDR Collection,CTX01,Postage & Distribution,0370,235.74,TNT Post Midlands Ltd,146983,07/02/2013,10179396
Resources & Corporate Governance ,Electoral Registration,ERG00,Postage & Distribution,0370,21.91,TNT Post Midlands Ltd,146983,07/02/2013,10179396
Sustainable Inclusive Communities,Housing Benefit Administration,HBA00,Postage & Distribution,0370,130.09,TNT Post Midlands Ltd,146983,07/02/2013,10179396
Housing Revenue Account ,Supervision and Management General,MAN00,Postage & Distribution,0370,22.35,TNT Post Midlands Ltd,146983,07/02/2013,10179396
Economy Development & Culture,Visitor Centre,VSC00,Postage & Distribution,0370,0.74,TNT Post Midlands Ltd,146983,07/02/2013,10179396
Resources & Corporate Governance ,General Administration,WAD00,Postage & Distribution,0370,4.25,TNT Post Midlands Ltd,146983,07/02/2013,10179396
Economy Development & Culture,Building Control Services,BCS00,Postage & Distribution,0370,5.29,TNT Post Midlands Ltd,146983,14/02/2013,10179859
Economy Development & Culture,Building Regulation Fee Earning Account,BCS99,Postage & Distribution,0370,7.02,TNT Post Midlands Ltd,146983,14/02/2013,10179859
Resources & Corporate Governance,Central Business Support Services,CSS15,Postage & Distribution,0370,36.31,TNT Post Midlands Ltd,146983,14/02/2013,10179859
Resources & Corporate Governance ,Council Tax and NNDR Collection,CTX01,Postage & Distribution,0370,372.49,TNT Post Midlands Ltd,146983,14/02/2013,10179859
Resources & Corporate Governance ,Electoral Registration,ERG00,Postage & Distribution,0370,3.36,TNT Post Midlands Ltd,146983,14/02/2013,10179859
Sustainable Inclusive Communities,Housing Benefit Administration,HBA00,Postage & Distribution,0370,166.83,TNT Post Midlands Ltd,146983,14/02/2013,10179859
Housing Revenue Account ,Supervision and Management General,MAN00,Postage & Distribution,0370,175.05,TNT Post Midlands Ltd,146983,14/02/2013,10179859
Resources & Corporate Governance ,General Administration,WAD00,Postage & Distribution,0370,6.72,TNT Post Midlands Ltd,146983,14/02/2013,10179859
Resources & Corporate Governance,Central Business Support Services,CSS15,Postage & Distribution,0370,-1261.48,TNT Post Midlands Ltd,146983,14/02/2013,10180206
Economy Development & Culture,Art Gallery and Museum,AGM00,Postage & Distribution,0370,14.85,TNT Post Midlands Ltd,146983,21/02/2013,10180208
Economy Development & Culture,Building Control Services,BCS00,Postage & Distribution,0370,3.41,TNT Post Midlands Ltd,146983,21/02/2013,10180208
Economy Development & Culture,Building Regulation Fee Earning Account,BCS99,Postage & Distribution,0370,4.51,TNT Post Midlands Ltd,146983,21/02/2013,10180208
Resources & Corporate Governance,Central Business Support Services,CSS15,Postage & Distribution,0370,28.66,TNT Post Midlands Ltd,146983,21/02/2013,10180208
Resources & Corporate Governance ,Council Tax and NNDR Collection,CTX01,Postage & Distribution,0370,249.90,TNT Post Midlands Ltd,146983,21/02/2013,10180208
Resources & Corporate Governance ,Electoral Registration,ERG00,Postage & Distribution,0370,325.30,TNT Post Midlands Ltd,146983,21/02/2013,10180208
Sustainable Inclusive Communities,Housing Benefit Administration,HBA00,Postage & Distribution,0370,171.63,TNT Post Midlands Ltd,146983,21/02/2013,10180208
Housing Revenue Account ,Supervision and Management General,MAN00,Postage & Distribution,0370,102.43,TNT Post Midlands Ltd,146983,21/02/2013,10180208
Resources & Corporate Governance ,General Administration,WAD00,Postage & Distribution,0370,32.84,TNT Post Midlands Ltd,146983,21/02/2013,10180208
Capital Program ,Kitchen Modifications,HIK10,Capital Contract Payments,5000,31800.00,CLC Contractors Ltd,147076,14/02/2013,10180246
Housing Revenue Account ,Gas Heating Systems,UMR01,R&M External Contractors,0100,22806.06,Integral UK Ltd,147080,07/02/2013,10179709
Housing Revenue Account ,Unplanned Maintenance and Repair,UMR00,R&M External Contractors,0100,770.64,Integral UK Ltd,147080,07/02/2013,10180054
Capital Program ,Disabled Adaptations,HCR01,Capital Contract Payments,5000,3824.45,Intelligent Disabled Solutions Ltd,147081,07/02/2013,10179791
Capital Program ,Disabled Adaptations,HCR01,Capital Contract Payments,5000,13232.97,Intelligent Disabled Solutions Ltd,147081,14/02/2013,10180272
Capital Program ,Queen's Diamond Jubilee Leisure Centre Project,LEI03,Capital Contract Payments,5000,700.00,B3 Architects,147190,14/02/2013,10179516
Capital Program ,Queen's Diamond Jubilee Leisure Centre Project,LEI03,Capital Contract Payments,5000,3500.00,B3 Architects,147190,14/02/2013,10179574
Resources & Corporate Governance,Corporate Property R&M,CPA01,R&M External Contractors,0100,418.00,AirTech Controls Ltd,147262,07/02/2013,10179864
Resources & Corporate Governance,Handy man,WHM00,Materials,0303,995.01,ECA Supplies (Coventry) Limited,147276,21/02/2013,10180086
Resources & Corporate Governance,Handy man,WHM00,Materials,0303,490.30,ECA Supplies (Coventry) Limited,147276,21/02/2013,10180092
Resources & Corporate Governance,Handy man,WHM00,Materials,0303,918.46,ECA Supplies (Coventry) Limited,147276,14/02/2013,10180215
Housing Revenue Account ,Sheltered Housing,AGP00,Other Insurance Premiums,0440,598.00,Plexus Law,147291,21/02/2013,10180501
Resources & Corporate Governance,Handy man,WHM00,External Contractor & Operator,0742,558.31,Stewart Groom Flooring,147316,07/02/2013,10179923
Capital Program ,Kitchen Modifications,HIK10,Capital Contract Payments,5000,4316.10,Rixonway Kitchens Ltd,147446,14/02/2013,10180119
Capital Program ,Kitchen Modifications,HIK10,Capital Contract Payments,5000,462.84,Rixonway Kitchens Ltd,147446,21/02/2013,10180141
Housing Revenue Account ,Unplanned Maintenance and Repair,UMR00,R&M External Contractors,0100,76.00,Rixonway Kitchens Ltd,147446,14/02/2013,10180166
Capital Program ,Kitchen Modifications,HIK10,Capital Contract Payments,5000,2176.00,Rixonway Kitchens Ltd,147446,14/02/2013,10180166
Housing Revenue Account ,Unplanned Maintenance and Repair,UMR00,R&M External Contractors,0100,25.00,Rixonway Kitchens Ltd,147446,14/02/2013,10180168
Capital Program ,Kitchen Modifications,HIK10,Capital Contract Payments,5000,675.00,Rixonway Kitchens Ltd,147446,14/02/2013,10180168
Resources & Corporate Governance,Handy man,WHM00,Materials,0303,756.11,Robert Pochin Limited,147536,07/02/2013,10179412
Resources & Corporate Governance ,Grounds Maintenance,WGM00,Vehicle Repair and Maintenance,0200,1716.64,Chris Tallis Farm Machinery Limited,147758,28/02/2013,10180274
Resources & Corporate Governance ,Grounds Maintenance,WGM00,Vehicle Running Costs,0201,1682.06,Chris Tallis Farm Machinery Limited,147758,28/02/2013,10180274
Economy Development & Culture,Economic Development General,ECD00,Development Activities,0450,15000.00,The Manufacturing Technology Centre,147847,28/02/2013,10180795
Resources & Corporate Governance ,"Communications, Consultation and Information Team",BTR20,Publicity & Marketing,0377,6725.00,Cole Creative Communications Ltd,147857,14/02/2013,10180311
Resources & Corporate Governance ,Grounds Maintenance,WGM00,Agency Staff,0003,346.40,3b2 Recruitment Ltd T/A Darren Bell Recruitment,147938,28/02/2013,10180479
Resources & Corporate Governance ,Domestic Waste Collection,WWC00,Agency Staff,0003,320.42,3b2 Recruitment Ltd T/A Darren Bell Recruitment,147938,28/02/2013,10180479
Resources & Corporate Governance ,Grounds Maintenance,WGM00,Agency Staff,0003,228.48,3b2 Recruitment Ltd T/A Darren Bell Recruitment,147938,21/02/2013,10180480
Resources & Corporate Governance ,Street Cleansing,WSC00,Agency Staff,0003,117.89,3b2 Recruitment Ltd T/A Darren Bell Recruitment,147938,21/02/2013,10180480
Resources & Corporate Governance ,Domestic Waste Collection,WWC00,Agency Staff,0003,654.85,3b2 Recruitment Ltd T/A Darren Bell Recruitment,147938,21/02/2013,10180480
Resources & Corporate Governance ,Street Cleansing,WSC00,Agency Staff,0003,320.42,3b2 Recruitment Ltd T/A Darren Bell Recruitment,147938,21/02/2013,10180481
Resources & Corporate Governance ,Domestic Waste Collection,WWC00,Agency Staff,0003,320.42,3b2 Recruitment Ltd T/A Darren Bell Recruitment,147938,21/02/2013,10180481
Capital Program ,Queen's Diamond Jubilee Leisure Centre Project,LEI03,Capital Contract Payments,5000,520642.64,Shepherd Construction Ltd,148014,07/02/2013,10180018
Resources & Corporate Governance,Handy man,WHM00,External Contractor & Operator,0742,547.50,Dean Hudson,148035,14/02/2013,10180233
Resources & Corporate Governance ,Customer and Information Strategy,CIS10,Software Maintenance,0374,3000.00,DataNovata Ltd,148083,21/02/2013,10180609
Resources & Corporate Governance ,Support Services,CIS20,Recruitment Expenses,0012,19.95,Team Prevent UK Ltd,148151,14/02/2013,10179491
Resources & Corporate Governance,Business Support Services,CSS10,Recruitment Expenses,0012,39.90,Team Prevent UK Ltd,148151,14/02/2013,10179491
Housing Revenue Account ,Supervision and Management General,MAN00,Recruitment Expenses,0012,19.95,Team Prevent UK Ltd,148151,14/02/2013,10179491
Resources & Corporate Governance ,Caldecott Park Cafe,WGM02,Recruitment Expenses,0012,19.95,Team Prevent UK Ltd,148151,14/02/2013,10179491
Housing Revenue Account ,Control Centre (HRA),CCE00,Employee wellbeing/Other employee expenses,0021,170.00,Team Prevent UK Ltd,148151,14/02/2013,10179491
Resources & Corporate Governance ,Support Services,CIS20,Employee wellbeing/Other employee expenses,0021,17.50,Team Prevent UK Ltd,148151,14/02/2013,10179491
Resources & Corporate Governance,Corporate Property Administration,CPA00,Employee wellbeing/Other employee expenses,0021,125.00,Team Prevent UK Ltd,148151,14/02/2013,10179491
Resources & Corporate Governance,Customer Support Services,CSS00,Employee wellbeing/Other employee expenses,0021,120.00,Team Prevent UK Ltd,148151,14/02/2013,10179491
Sustainable Environment ,Street Scene,ENV30,Employee wellbeing/Other employee expenses,0021,59.00,Team Prevent UK Ltd,148151,14/02/2013,10179491
Housing Revenue Account ,Property Maintenance,MAN23,Employee wellbeing/Other employee expenses,0021,85.00,Team Prevent UK Ltd,148151,14/02/2013,10179491
Economy Development & Culture,Planning Control,PLN01,Employee wellbeing/Other employee expenses,0021,99.00,Team Prevent UK Ltd,148151,14/02/2013,10179491
Resources & Corporate Governance ,Grounds Maintenance,WGM00,Employee wellbeing/Other employee expenses,0021,40.00,Team Prevent UK Ltd,148151,14/02/2013,10179491
Resources & Corporate Governance ,Caldecott Park Cafe,WGM02,Employee wellbeing/Other employee expenses,0021,195.00,Team Prevent UK Ltd,148151,14/02/2013,10179491
Resources & Corporate Governance,Handy man,WHM00,Employee wellbeing/Other employee expenses,0021,394.00,Team Prevent UK Ltd,148151,14/02/2013,10179491
Resources & Corporate Governance ,Street Cleansing,WSC00,Employee wellbeing/Other employee expenses,0021,137.50,Team Prevent UK Ltd,148151,14/02/2013,10179491
Resources & Corporate Governance ,Domestic Waste Collection,WWC00,Employee wellbeing/Other employee expenses,0021,209.00,Team Prevent UK Ltd,148151,14/02/2013,10179491
Capital Program ,Corporate Property Enhancements,CPE00,Capital Contract Payments,5000,500.00,The Engineering Practice Ltd,148180,14/02/2013,10180124
,Balance Sheet,BS,Car Salary Sacrifice,9243,1658.50,Fleethire Ltd,148197,21/02/2013,10180581
Resources & Corporate Governance,Handy man,WHM00,External Contractor & Operator,0742,570.00,J P Building Services,148337,14/02/2013,10180139
Resources & Corporate Governance,Corporate Property R&M,CPA01,R&M External Contractors,0100,950.00,"Gotch, Saunders & Surridge LLP , t/a GSS Architecture",148432,07/02/2013,10179376
Economy Development & Culture,AGM Exhibitions/Outreach,AGM02,Other Miscellaneous Expenses,0444,1000.00,REDACTED PERSONAL DATA,148666,07/02/2013,10179782
Resources & Corporate Governance ,Human Resources Centralised Services,RES31,Training fees,0011,700.00,Solihull College,148678,28/02/2013,10179362
Economy Development & Culture,Ken Marriott Leisure Centre,KML00,Other,0763,1020.00,Mr Jason  Coppel,148710,07/02/2013,10179770
Resources & Corporate Governance,Handy man,WHM00,External Contractor & Operator,0742,697.50,AML Building Services,148718,14/02/2013,10180063
Resources & Corporate Governance ,Garage Internal,WVR01,Agency Staff,0003,783.20,Proactive Personnel Ltd,148724,07/02/2013,10179805
Resources & Corporate Governance ,Garage Internal,WVR01,Agency Staff,0003,783.20,Proactive Personnel Ltd,148724,14/02/2013,10180192
Resources & Corporate Governance ,Garage Internal,WVR01,Agency Staff,0003,783.20,Proactive Personnel Ltd,148724,21/02/2013,10180489
Resources & Corporate Governance ,Garage Internal,WVR01,Agency Staff,0003,730.40,Proactive Personnel Ltd,148724,28/02/2013,10180756
Capital Program ,Cemetery Infrastructure Work,BUR05,Capital Contract Payments,5000,2550.00,Warwick Reclamation,148756,07/02/2013,10179757
,Balance Sheet,BS,Car Loan Scheme,9261,7495.00,Mawsley Motor Company Ltd,148771,07/02/2013,10180021
Capital Program ,Woodland Creation Project,WCP00,Capital Contract Payments,5000,9000.00,Woodland Trust,148776,28/02/2013,10180646
Resources & Corporate Governance ,General Financial Services,GFS00,External Contractor & Operator,0742,2513.89,Local Government Association,,22/11/2450,
Resources & Corporate Governance ,General Financial Services,GFS00,External Contractor & Operator,0742,533.08,Local Government Association,,22/11/2450,
,Balance Sheet,BS,NNDR Pooling,9476,379865.00,CLG,26955,05/02/2013,
,Balance Sheet,BS,NNDR Pooling,9476,379866.00,CLG,27053,19/02/2013,
